bitfinex-derivatives/quotes_SOLF0:USTF0_20230902
["timestamp","ask_amount","ask_price","bid_price","bid_amount"]
[1693695651845,123.12,19.526,19.516,0.45454546]
[1693695652544,15.38,19.52,19.515,0.12383654]
[1693695654545,15.38,19.52,19.511,0.18579198]
[1693695656353,15.38,19.523,19.512,0.12]
[1693695656552,15.38,19.523,19.511,0.18579198]
[1693695657345,123.12,19.52,19.511,0.18579198]
[1693695658557,123.12,19.52,19.507,123.36777222]
[1693695658853,15.38,19.517,19.507,0.24777222]
[1693695659050,123.12,19.514,19.507,0.24777222]
[1693695662456,123.12,19.514,19.502,123.12]
[1693695663556,0.06193126,19.511,19.502,123.12]
[1693695664954,123.12,19.517,19.504,123.12]
[1693695665151,21.018,19.519,19.507,123.12]
[1693695665558,123.12,19.52,19.507,123.12]
[1693695667956,123.12,19.517,19.505,123.12]
[1693695669952,123.12,19.517,19.505,123.25]
[1693695671060,15.38,19.514,19.502,123.12]
[1693695678568,0.06193119,19.511,19.502,123.12]
[1693695679571,0.06193119,19.511,19.5,20.8152]
[1693695680170,0.06193119,19.511,19.501,0.13]
[1693695681271,0.06193119,19.511,19.5,20.8152]
[1693695681671,0.06193119,19.511,19.503,123.12]
[1693695682274,0.06193119,19.511,19.505,0.13]
[1693695682971,0.06193119,19.511,19.501,123.12]
[1693695683174,0.06193119,19.511,19.502,0.13]
[1693695684177,0.06193119,19.511,19.501,123.12]
[1693695684379,123.12,19.51,19.5,20.8152]
[1693695684876,123.12,19.51,19.498,123.12]
[1693695686575,15.38,19.507,19.495,144.9559]
[1693695686776,15.38,19.507,19.495,123.12]
[1693695687569,123.12,19.508,19.489,123.25]
[1693695687570,123.12,19.503,19.489,123.25]
[1693695694479,123.12,19.503,19.489,123.26]
[1693695706588,123.12,19.501,19.489,123.26]
[1693695707392,123.12,19.501,19.489,123.12]
[1693695711997,123.12,19.501,19.488,21.671]
[1693695712389,110.98,19.497,19.49,110.98]
[1693695721895,110.98,19.497,19.491,0.14]
[1693695727704,0.45454546,19.504,19.47,592.45400462]
[1693695727705,126.36,19.505,19.496,110.98]
[1693695727906,126.36,19.505,19.497,110.98]
[1693695728100,110.98,19.505,19.497,110.98]
[1693695730103,15.39,19.501,19.495,22.0913]
[1693695731204,110.98,19.496,19.489,0.14]
[1693695732107,15.39,19.495,19.489,110.98]
[1693695733603,110.98,19.493,19.486,110.98]
[1693695734212,110.98,19.493,19.487,0.14]
[1693695734405,110.98,19.493,19.486,110.98]
[1693695737311,15.39,19.495,19.485,21.6099]
[1693695742111,15.39,19.493,19.485,21.6099]
[1693695745416,15.39,19.499,19.476,34.6970946]
[1693695745614,123.35,19.486,19.475,0.14]
[1693695745817,123.35,19.488,19.476,123.35]
[1693695747511,123.35,19.484,19.472,123.49]
[1693695747720,0.45454546,19.483,19.472,123.35]
[1693695757236,0.45454546,19.483,19.47,22.45400462]
[1693695757430,111.15,19.481,19.473,111.15]
[1693695758742,111.15,19.478,19.47,111.15]
[1693695761944,111.15,19.48,19.473,111.15]
[1693695765945,111.15,19.477,19.47,111.15]
[1693695767249,111.15,19.477,19.475,0.15]
[1693695768152,111.15,19.477,19.47,111.15]
[1693695772156,111.15,19.476,19.47,0.15]
[1693695774052,111.15,19.473,19.467,0.15]
[1693695774254,0.45454546,19.472,19.467,0.15]
[1693695780967,111.15,19.473,19.467,0.15]
[1693695781359,111.15,19.47,19.463,111.15]
[1693695781959,111.15,19.468,19.461,111.15]
[1693695783570,111.15,19.467,19.46,111.15]
[1693695786163,111.15,19.465,19.458,111.15]
[1693695787470,111.15,19.463,19.462,0.15]
[1693695787668,111.15,19.463,19.457,111.15]
[1693695791169,111.60454546,19.463,19.457,111.15]
[1693695791363,111.15,19.463,19.457,111.15]
[1693695792164,22.0675,19.471,19.454,111.15]
[1693695792165,111.15,19.461,19.454,111.15]
[1693695797063,111.15,19.458,19.451,111.15]
[1693695800168,111.15,19.456,19.449,111.15]
[1693695804575,111.15,19.458,19.451,111.15]
[1693695811981,111.15,19.46,19.453,111.15]
[1693695814179,111.15,19.457,19.45,111.15]
[1693695814581,111.15,19.454,19.447,134.10717781]
[1693695816782,0.45454546,19.468,19.447,134.10717781]
[1693695816783,111.15,19.457,19.45,111.15]
[1693695819890,111.15,19.454,19.447,134.10717781]
[1693695821490,111.15,19.457,19.45,111.15]
[1693695822096,111.15,19.457,19.447,22.95717781]
[1693695822097,111.15,19.459,19.452,111.15]
[1693695823894,111.15,19.456,19.449,111.15]
[1693695827296,111.15,19.456,19.447,22.95717781]
[1693695827297,123.81,19.459,19.447,146.76717781]
[1693695827498,123.81,19.459,19.447,22.95717781]
[1693695827499,123.81,19.455,19.447,22.95717781]
[1693695827696,0.45454546,19.454,19.447,22.95717781]
[1693695830593,15.86454546,19.454,19.444,0.16]
[1693695830994,15.86454546,19.454,19.434,995.24]
[1693695830995,123.81,19.451,19.44,123.81]
[1693695832902,0.45454546,19.457,19.446,123.81]
[1693695833104,123.81,19.459,19.446,148.64230171]
[1693695833404,123.81,19.459,19.447,21.0108]
[1693695838800,123.81,19.454,19.447,21.0108]
[1693695839104,123.81,19.454,19.446,24.83230171]
[1693695842005,123.81,19.452,19.446,24.83230171]
[1693695842397,123.81,19.452,19.441,277.71]
[1693695842600,123.81,19.458,19.447,123.81]
[1693695842805,123.81,19.458,19.447,146.97663613]
[1693695843697,123.81,19.461,19.449,123.81]
[1693695849305,20.88104546,19.465,19.454,623.81]
[1693695849306,144.69104546,19.465,19.454,623.81]
[1693695849506,123.81,19.469,19.457,123.81]
[1693695851511,90.5995,19.469,19.458,153.9]
[1693695851708,123.81,19.48,19.463,500.0]
[1693695852014,15.42,19.481,19.47,0.17]
[1693695854711,123.81,19.482,19.47,0.17]
[1693695854912,20.264,19.483,19.472,123.81]
[1693695855113,20.71854546,19.483,19.472,123.81]
[1693695855615,0.45454546,19.483,19.475,123.81]
[1693695855807,15.42,19.486,19.475,123.81]
[1693695860514,15.42,19.486,19.473,500.0]
[1693695860718,160.5087,19.489,19.477,123.81]
[1693695860907,139.23,19.489,19.477,123.81]
[1693695861218,20.3392,19.488,19.477,123.81]
[1693695870816,15.4,19.486,19.475,123.81]
[1693695878124,123.81,19.483,19.472,0.15]
[1693695878322,15.4,19.481,19.471,123.81]
[1693695882934,123.81,19.479,19.466,123.81]
[1693695888036,123.81,19.479,19.467,0.15]
[1693695891939,123.81,19.479,19.468,123.81]
[1693695893238,123.81,19.477,19.465,123.81]
[1693695902246,15.4,19.481,19.463,511.9118]
[1693695902448,111.24,19.474,19.468,111.24]
[1693695904149,15.4,19.481,19.463,511.9118]
[1693695904150,15.41,19.472,19.466,111.24]
[1693695905650,15.41,19.472,19.463,511.9118]
[1693695905651,111.24,19.476,19.47,0.16]
[1693695905848,111.24,19.479,19.472,111.24]
[1693695907443,15.41,19.481,19.47,123.53]
[1693695927671,0.45454546,19.483,19.473,123.53]
[1693695932266,111.14,19.482,19.476,111.14]
[1693695945079,148.4959,19.484,19.477,111.14]
[1693695947482,148.4959,19.484,19.477,68.01573868]
[1693695960291,37.3559,19.484,19.479,111.14]
[1693695960590,21.9459,19.484,19.479,111.14]
[1693695967499,21.9459,19.484,19.479,68.01520423]
[1693695975203,21.9459,19.484,19.463,165.8118]
[1693695975407,21.9459,19.484,19.481,111.14]
[1693695975806,45.83435893,19.486,19.481,111.14]
[1693695981812,45.37981347,19.486,19.481,111.14]
[1693695982011,141.11981347,19.486,19.48,111.14]
[1693695987711,36.1481,19.489,19.484,111.14]
[1693695991923,20.7481,19.489,19.485,111.14]
[1693696010323,131.8881,19.489,19.482,111.14]
[1693696010531,15.4,19.486,19.479,111.14]
[1693696010928,111.14,19.484,19.477,111.14]
[1693696024343,15.4,19.481,19.476,111.14]
[1693696032050,20.9792,19.488,19.473,111.14]
[1693696032051,111.14,19.48,19.473,111.14]
[1693696035756,111.14,19.479,19.472,111.14]
[1693696051981,111.14,19.477,19.471,111.14]
[1693696054481,111.14,19.477,19.47,111.14]
[1693696082014,111.14,19.477,19.471,111.14]
[1693696092021,111.14,19.477,19.47,111.14]
[1693696098228,77.9474,19.477,19.47,111.14]
[1693696098424,111.14,19.488,19.476,111.14]
[1693696098631,111.14,19.488,19.482,0.15]
[1693696100122,111.14,19.488,19.482,276.08215105]
[1693696100327,111.14,19.488,19.483,275.93215105]
[1693696100531,111.14,19.488,19.484,275.93215105]
[1693696100728,111.14,19.488,19.485,275.93215105]
[1693696100928,111.14,19.488,19.482,0.15]
[1693696102030,111.14,19.489,19.482,111.14]
[1693696102231,111.14,19.489,19.483,275.94272186]
[1693696106936,15.86454546,19.493,19.483,275.94272186]
[1693696107132,15.86454546,19.493,19.468,153.9]
[1693696107336,15.86454546,19.493,19.47,0.15]
[1693696108130,15.86454546,19.493,19.472,500.0]
[1693696108437,15.86454546,19.493,19.473,275.94355123]
[1693696115539,15.86454546,19.493,19.475,0.14]
[1693696115740,15.86454546,19.493,19.472,0.14]
[1693696115939,15.86454546,19.493,19.472,276.08355123]
[1693696157464,15.86454546,19.493,19.472,0.14]
[1693696159164,15.86454546,19.493,19.461,500.0]
[1693696159461,15.86454546,19.493,19.462,462.47579686]
[1693696159662,15.86454546,19.493,19.464,153.9]
[1693696159865,15.86454546,19.493,19.467,0.14]
[1693696160066,15.86454546,19.493,19.472,0.14]
[1693696162176,15.86454546,19.493,19.472,276.07105166]
[1693696162473,15.4,19.491,19.472,276.07105166]
[1693696162674,15.85454546,19.493,19.472,276.07105166]
[1693696162876,15.4,19.491,19.472,276.07105166]
[1693696163079,15.85454546,19.493,19.472,276.07105166]
[1693696163268,15.4,19.491,19.472,276.07105166]
[1693696163471,15.85454546,19.493,19.472,276.07105166]
[1693696163773,15.4,19.491,19.472,276.07105166]
[1693696164076,15.85454546,19.493,19.472,276.07105166]
[1693696164376,15.4,19.491,19.472,276.07105166]
[1693696164578,15.85454546,19.493,19.472,276.07105166]
[1693696164776,15.4,19.491,19.472,276.07105166]
[1693696164974,15.85454546,19.493,19.472,276.07105166]
[1693696165174,15.4,19.491,19.472,276.07105166]
[1693696165373,15.85454546,19.493,19.472,276.07105166]
[1693696165674,15.4,19.491,19.472,276.07105166]
[1693696165870,15.85454546,19.493,19.472,276.07105166]
[1693696166075,15.4,19.491,19.472,276.07105166]
[1693696166276,15.85454546,19.493,19.472,276.07105166]
[1693696166476,15.4,19.491,19.472,276.07105166]
[1693696166679,15.85454546,19.493,19.472,276.07105166]
[1693696166880,15.4,19.491,19.472,276.07105166]
[1693696167081,15.85454546,19.493,19.472,276.07105166]
[1693696167281,15.4,19.491,19.472,276.07105166]
[1693696167478,15.85454546,19.493,19.472,276.07105166]
[1693696167780,15.4,19.491,19.472,276.07105166]
[1693696168081,15.85454546,19.493,19.472,276.07105166]
[1693696168279,15.4,19.491,19.472,276.07105166]
[1693696168479,15.85454546,19.493,19.472,276.07105166]
[1693696168679,15.4,19.491,19.472,276.07105166]
[1693696168880,15.85454546,19.493,19.472,276.07105166]
[1693696169072,15.4,19.491,19.472,276.07105166]
[1693696169277,15.85454546,19.493,19.472,276.07105166]
[1693696169474,15.4,19.491,19.472,276.07105166]
[1693696169680,15.85454546,19.493,19.472,276.07105166]
[1693696169883,15.4,19.491,19.472,276.07105166]
[1693696170079,15.85454546,19.493,19.472,276.07105166]
[1693696170281,15.4,19.491,19.472,276.07105166]
[1693696170583,15.85454546,19.493,19.472,276.07105166]
[1693696170784,15.4,19.491,19.472,276.07105166]
[1693696171085,15.85454546,19.493,19.472,276.07105166]
[1693696171285,15.4,19.491,19.472,276.07105166]
[1693696171485,15.85454546,19.493,19.472,276.07105166]
[1693696171686,15.4,19.491,19.472,276.07105166]
[1693696171886,15.85454546,19.493,19.472,276.07105166]
[1693696172088,15.4,19.491,19.472,276.07105166]
[1693696172286,15.85454546,19.493,19.472,276.07105166]
[1693696172581,15.4,19.491,19.472,276.07105166]
[1693696172785,15.85454546,19.493,19.472,276.07105166]
[1693696172985,15.4,19.491,19.472,276.07105166]
[1693696173186,0.45454546,19.492,19.472,276.07105166]
[1693696173187,15.85454546,19.493,19.472,276.07105166]
[1693696173387,15.4,19.491,19.472,276.07105166]
[1693696173591,15.85454546,19.493,19.472,276.07105166]
[1693696173788,15.4,19.491,19.472,276.07105166]
[1693696173988,15.85454546,19.493,19.472,276.07105166]
[1693696174190,15.4,19.491,19.472,276.07105166]
[1693696174386,15.85454546,19.493,19.472,276.07105166]
[1693696174587,15.4,19.491,19.472,276.07105166]
[1693696174788,15.85454546,19.493,19.472,276.07105166]
[1693696174987,15.4,19.491,19.472,276.07105166]
[1693696175191,15.85454546,19.493,19.472,276.07105166]
[1693696175483,15.4,19.491,19.472,276.07105166]
[1693696175689,15.85454546,19.493,19.472,276.07105166]
[1693696175889,43.22161075,19.494,19.472,276.07105166]
[1693696175890,15.4,19.491,19.472,276.07105166]
[1693696176087,15.85454546,19.493,19.472,276.07105166]
[1693696176288,15.4,19.491,19.472,276.07105166]
[1693696176488,15.85454546,19.493,19.472,276.07105166]
[1693696176688,15.4,19.491,19.472,276.07105166]
[1693696176890,15.85454546,19.493,19.472,276.07105166]
[1693696177185,15.4,19.491,19.472,276.07105166]
[1693696177489,15.85454546,19.493,19.472,276.07105166]
[1693696177691,15.4,19.491,19.472,276.07105166]
[1693696177887,15.85454546,19.493,19.472,276.07105166]
[1693696178191,43.22161075,19.494,19.472,276.07105166]
[1693696178192,15.4,19.491,19.472,276.07105166]
[1693696178391,15.85454546,19.493,19.472,276.07105166]
[1693696178587,15.4,19.491,19.472,276.07105166]
[1693696178784,15.85454546,19.493,19.472,276.07105166]
[1693696178994,15.4,19.491,19.472,276.07105166]
[1693696179293,15.85454546,19.493,19.472,276.07105166]
[1693696179494,15.4,19.491,19.472,276.07105166]
[1693696179795,15.85454546,19.493,19.472,276.07105166]
[1693696179993,15.4,19.491,19.472,276.07105166]
[1693696180293,15.85454546,19.493,19.472,276.07105166]
[1693696180493,15.4,19.491,19.472,276.07105166]
[1693696180686,15.85454546,19.493,19.472,276.07105166]
[1693696180884,15.4,19.491,19.472,276.07105166]
[1693696181091,15.85454546,19.493,19.472,276.07105166]
[1693696181393,0.45454546,19.501,19.48,500.0]
[1693696181592,20.7199,19.501,19.482,0.14]
[1693696181985,36.1199,19.501,19.482,0.14]
[1693696182195,21.17444546,19.501,19.48,500.0]
[1693696182394,20.7199,19.501,19.48,500.0]
[1693696183387,15.4,19.499,19.48,500.0]
[1693696183592,20.7199,19.501,19.48,500.0]
[1693696183795,15.4,19.499,19.48,500.0]
[1693696183989,20.7199,19.501,19.48,500.0]
[1693696184190,15.4,19.499,19.48,500.0]
[1693696184395,21.17444546,19.501,19.48,500.0]
[1693696184697,15.4,19.499,19.48,500.0]
[1693696184893,20.7199,19.501,19.48,500.0]
[1693696185196,15.4,19.499,19.48,500.0]
[1693696185391,20.7199,19.501,19.48,500.0]
[1693696185597,15.4,19.499,19.48,500.0]
[1693696185793,20.7199,19.501,19.48,500.0]
[1693696185988,15.4,19.499,19.48,500.0]
[1693696186193,20.7199,19.501,19.48,500.0]
[1693696186393,15.4,19.499,19.48,500.0]
[1693696186692,20.7199,19.501,19.48,500.0]
[1693696186994,15.4,19.499,19.48,500.0]
[1693696187194,20.7199,19.501,19.48,500.0]
[1693696187394,15.4,19.499,19.48,500.0]
[1693696187594,15.4,19.497,19.48,500.0]
[1693696187796,9.42984972,19.498,19.48,500.0]
[1693696187797,20.7199,19.501,19.48,500.0]
[1693696187996,15.4,19.499,19.48,500.0]
[1693696188197,9.42986133,19.5,19.48,500.0]
[1693696188198,15.4,19.497,19.48,500.0]
[1693696188396,20.7199,19.501,19.48,500.0]
[1693696188597,15.4,19.499,19.48,500.0]
[1693696188793,15.4,19.497,19.48,500.0]
[1693696188999,20.7199,19.501,19.48,500.0]
[1693696189200,15.4,19.499,19.48,500.0]
[1693696189400,15.4,19.497,19.48,500.0]
[1693696189602,20.7199,19.501,19.48,500.0]
[1693696189904,15.4,19.499,19.48,500.0]
[1693696190092,15.4,19.497,19.48,500.0]
[1693696190296,20.7199,19.501,19.48,500.0]
[1693696190505,15.4,19.499,19.48,500.0]
[1693696190696,15.4,19.497,19.48,500.0]
[1693696190901,20.7199,19.501,19.48,500.0]
[1693696191103,15.4,19.499,19.48,500.0]
[1693696191300,15.4,19.497,19.48,500.0]
[1693696191495,20.7199,19.501,19.48,500.0]
[1693696191701,15.4,19.499,19.48,500.0]
[1693696191903,15.4,19.497,19.48,500.0]
[1693696192096,20.7199,19.501,19.48,500.0]
[1693696192293,15.4,19.499,19.48,500.0]
[1693696192492,15.4,19.497,19.48,500.0]
[1693696192700,20.7199,19.501,19.48,500.0]
[1693696192896,15.4,19.499,19.48,500.0]
[1693696193102,15.4,19.497,19.48,500.0]
[1693696193304,15.4,19.499,19.48,500.0]
[1693696193498,15.4,19.497,19.48,500.0]
[1693696193696,15.4,19.499,19.48,500.0]
[1693696193898,15.4,19.497,19.48,500.0]
[1693696194097,15.4,19.499,19.48,500.0]
[1693696194299,15.4,19.497,19.48,500.0]
[1693696194500,15.4,19.499,19.48,500.0]
[1693696194700,15.4,19.497,19.48,500.0]
[1693696194900,15.4,19.499,19.48,500.0]
[1693696195102,15.4,19.497,19.48,500.0]
[1693696195302,15.4,19.499,19.48,500.0]
[1693696195506,15.4,19.497,19.48,500.0]
[1693696195797,15.4,19.495,19.472,0.14]
[1693696196002,15.4,19.493,19.472,0.14]
[1693696196203,15.4,19.491,19.472,0.14]
[1693696196405,15.4,19.489,19.472,0.14]
[1693696196607,15.4,19.495,19.472,0.14]
[1693696196902,15.4,19.493,19.472,0.14]
[1693696197104,15.4,19.491,19.472,0.14]
[1693696197304,15.4,19.489,19.472,0.14]
[1693696197604,15.4,19.495,19.472,0.14]
[1693696197804,15.4,19.493,19.472,0.14]
[1693696197998,15.4,19.491,19.472,0.14]
[1693696198195,15.4,19.489,19.472,0.14]
[1693696198400,20.586,19.491,19.472,0.14]
[1693696198696,15.4,19.489,19.472,0.14]
[1693696213606,15.4,19.489,19.469,809.21377319]
[1693696213607,15.4,19.489,19.47,0.15]
[1693696213808,9.8883631,19.488,19.458,500.0]
[1693696214014,15.4,19.486,19.459,282.74896541]
[1693696214313,15.4,19.484,19.459,315.21582863]
[1693696214507,0.45454546,19.483,19.459,315.21582863]
[1693696214708,15.4,19.481,19.459,315.21582863]
[1693696214913,0.45454546,19.48,19.46,276.01541176]
[1693696215110,15.4,19.489,19.461,276.01541176]
[1693696215314,35.54593969,19.488,19.462,276.01541176]
[1693696215509,15.4,19.486,19.463,276.01541176]
[1693696215716,15.4,19.484,19.459,39.20041687]
[1693696215915,0.45454546,19.483,19.459,315.22889126]
[1693696216207,20.8699,19.483,19.459,315.22889126]
[1693696216408,15.4,19.481,19.459,315.22889126]
[1693696216715,0.45454546,19.48,19.459,315.22889126]
[1693696216918,15.4,19.481,19.459,315.22889126]
[1693696217119,0.45454546,19.48,19.459,315.22889126]
[1693696217319,15.4,19.481,19.459,315.22889126]
[1693696217515,0.45454546,19.48,19.459,315.22889126]
[1693696217714,45.79526251,19.481,19.459,315.22889126]
[1693696218016,0.45454546,19.48,19.459,315.22889126]
[1693696231125,0.45454546,19.48,19.459,39.20041687]
[1693696249054,0.45454546,19.48,19.459,193.10041687]
[1693696249253,0.45454546,19.479,19.46,6.73312738]
[1693696249547,20.8699,19.483,19.46,6.73312738]
[1693696249548,15.41,19.481,19.46,6.73312738]
[1693696249850,0.45454546,19.48,19.46,6.73312738]
[1693696250049,0.45454546,19.479,19.46,6.73312738]
[1693696250343,15.41,19.481,19.46,6.73312738]
[1693696250549,0.45454546,19.48,19.46,6.73312738]
[1693696250749,20.8699,19.483,19.46,6.73312738]
[1693696250750,0.45454546,19.479,19.46,6.73312738]
[1693696251050,15.41,19.481,19.46,6.73312738]
[1693696251251,0.45454546,19.48,19.46,6.73312738]
[1693696251452,20.8699,19.483,19.46,6.73312738]
[1693696251453,0.45454546,19.479,19.46,6.73312738]
[1693696251654,15.41,19.481,19.46,6.73312738]
[1693696251856,0.45454546,19.48,19.46,6.73312738]
[1693696252053,15.41,19.481,19.46,6.73312738]
[1693696252354,0.45454546,19.48,19.46,6.73312738]
[1693696252557,0.45454546,19.479,19.461,153.9]
[1693696252853,15.41,19.481,19.461,153.9]
[1693696253054,0.45454546,19.48,19.461,153.9]
[1693696253257,15.41,19.481,19.461,153.9]
[1693696253451,0.45454546,19.48,19.461,153.9]
[1693696253646,0.45454546,19.479,19.46,153.9]
[1693696253851,15.41,19.481,19.461,6.73187204]
[1693696254146,0.45454546,19.48,19.461,6.73187204]
[1693696254348,0.45454546,19.479,19.461,6.73187204]
[1693696254553,15.41,19.481,19.461,6.73187204]
[1693696254754,20.8699,19.483,19.461,6.73187204]
[1693696254755,0.45454546,19.48,19.461,6.73187204]
[1693696254955,15.41,19.481,19.461,6.73187204]
[1693696255156,0.45454546,19.48,19.462,153.9]
[1693696255362,0.45454546,19.479,19.462,153.9]
[1693696255549,15.41,19.481,19.462,153.9]
[1693696255751,0.45454546,19.48,19.462,153.9]
[1693696255956,0.45454546,19.479,19.462,153.9]
[1693696256158,20.8699,19.483,19.462,153.9]
[1693696256159,15.41,19.481,19.462,153.9]
[1693696256456,0.45454546,19.48,19.462,153.9]
[1693696256658,15.41,19.481,19.462,153.9]
[1693696256859,0.45454546,19.48,19.462,153.9]
[1693696257059,0.45454546,19.479,19.462,153.9]
[1693696257359,15.41,19.481,19.462,153.9]
[1693696257658,0.45454546,19.48,19.462,153.9]
[1693696257860,15.41,19.481,19.462,153.9]
[1693696258153,0.45454546,19.482,19.462,153.9]
[1693696258154,0.45454546,19.48,19.462,153.9]
[1693696258359,15.41,19.481,19.462,153.9]
[1693696258557,0.45454546,19.48,19.462,153.9]
[1693696258757,0.45454546,19.479,19.462,153.9]
[1693696258957,15.41,19.481,19.462,153.9]
[1693696259159,0.45454546,19.48,19.462,153.9]
[1693696259354,0.45454546,19.479,19.462,153.9]
[1693696259559,15.41,19.481,19.462,153.9]
[1693696259759,0.45454546,19.48,19.462,153.9]
[1693696259959,15.41,19.481,19.462,153.9]
[1693696260162,0.45454546,19.48,19.462,153.9]
[1693696260363,0.45454546,19.479,19.462,153.9]
[1693696260562,15.41,19.481,19.462,153.9]
[1693696260763,0.45454546,19.48,19.462,153.9]
[1693696260963,15.41,19.481,19.462,153.9]
[1693696261166,0.45454546,19.48,19.462,153.9]
[1693696261463,0.45454546,19.479,19.462,153.9]
[1693696261764,15.41,19.481,19.462,153.9]
[1693696262066,0.45454546,19.48,19.462,153.9]
[1693696262362,0.45454546,19.479,19.462,153.9]
[1693696262562,15.41,19.481,19.462,153.9]
[1693696262755,0.45454546,19.48,19.462,153.9]
[1693696262954,0.45454546,19.479,19.462,153.9]
[1693696263168,0.45454546,19.488,19.462,153.9]
[1693696263458,15.41,19.486,19.462,153.9]
[1693696263664,15.41,19.484,19.462,153.9]
[1693696263860,0.45454546,19.483,19.462,153.9]
[1693696264166,15.41,19.484,19.462,153.9]
[1693696264465,0.45454546,19.483,19.462,153.9]
[1693696264660,15.41,19.484,19.462,153.9]
[1693696264856,0.45454546,19.483,19.462,153.9]
[1693696265062,15.4,19.491,19.462,153.9]
[1693696265262,15.4,19.489,19.462,153.9]
[1693696265565,0.45454546,19.488,19.462,153.9]
[1693696265760,15.4,19.491,19.462,153.9]
[1693696265965,15.4,19.489,19.462,153.9]
[1693696266269,0.45454546,19.488,19.462,153.9]
[1693696266468,15.4,19.486,19.462,153.9]
[1693696266765,15.4,19.484,19.462,153.9]
[1693696266965,0.45454546,19.483,19.462,153.9]
[1693696267166,15.4,19.484,19.462,153.9]
[1693696267366,0.45454546,19.483,19.462,153.9]
[1693696267565,15.4,19.491,19.462,153.9]
[1693696267761,15.4,19.489,19.462,153.9]
[1693696267965,0.45454546,19.488,19.462,153.9]
[1693696268166,15.4,19.491,19.463,274.35105739]
[1693696268367,15.4,19.489,19.463,274.35105739]
[1693696268570,0.45454546,19.488,19.463,274.35105739]
[1693696268866,15.4,19.491,19.463,274.35105739]
[1693696269066,15.4,19.489,19.463,274.35105739]
[1693696269366,0.45454546,19.488,19.463,274.35105739]
[1693696269568,15.4,19.486,19.463,274.35105739]
[1693696269774,15.4,19.484,19.463,274.35105739]
[1693696269969,0.45454546,19.483,19.463,274.35105739]
[1693696270169,15.4,19.491,19.463,274.35105739]
[1693696270370,15.4,19.489,19.463,274.35105739]
[1693696270670,0.45454546,19.488,19.463,274.35105739]
[1693696270868,15.4,19.491,19.463,274.35105739]
[1693696271069,15.4,19.489,19.463,274.35105739]
[1693696271270,0.45454546,19.488,19.463,274.35105739]
[1693696271571,15.4,19.486,19.463,274.35105739]
[1693696271774,15.4,19.484,19.463,274.35105739]
[1693696271972,0.45454546,19.483,19.463,274.35105739]
[1693696272173,15.4,19.481,19.463,274.35105739]
[1693696272373,0.45454546,19.48,19.463,274.35105739]
[1693696272671,15.4,19.489,19.463,274.35105739]
[1693696272870,0.45454546,19.488,19.463,274.35105739]
[1693696273172,15.4,19.489,19.461,25.69241]
[1693696273373,0.45454546,19.488,19.461,453.93329096]
[1693696273674,15.4,19.489,19.462,274.34088096]
[1693696273867,0.45454546,19.488,19.462,274.34088096]
[1693696274075,15.4,19.489,19.462,274.34088096]
[1693696274272,0.45454546,19.488,19.462,274.34088096]
[1693696274573,15.4,19.489,19.462,274.34088096]
[1693696274775,0.45454546,19.488,19.462,274.34088096]